bitfinex/quotes_SOLUSD_20240726
["timestamp","ask_amount","ask_price","bid_price","bid_amount"]
[1721981647741,12.41,177.63,177.61,5.63]
[1721981649458,12.41,177.63,177.62,5.6299]
[1721981650356,8.82512771,177.69,177.63,5.6295]
[1721981650357,5.6281,177.68,177.63,5.6295]
[1721981650562,12.41,177.64,177.63,5.6295]
[1721981651662,5.6281,177.68,177.63,5.6295]
[1721981651957,12.41,177.64,177.63,5.6295]
[1721981655964,12.41,177.64,177.59,15.7543]
[1721981656153,12.41,177.6,177.59,5.6309]
[1721981656744,49.64,177.66,177.59,5.6309]
[1721981656967,5.6293,177.64,177.6,5.6306]
[1721981657161,55.269,177.66,177.6,5.6306]
[1721981657366,12.41,177.62,177.6,5.6306]
[1721981659238,12.41,177.61,177.6,5.6306]
[1721981659966,12.41,177.61,177.59,5.6308]
[1721981660773,12.41,177.61,177.58,19.7086]
[1721981661281,12.41,177.6,177.58,19.7086]
[1721981661773,12.41,177.6,177.59,5.6309]
[1721981662065,12.41,177.6,177.58,5.6312]
[1721981662265,12.41,177.59,177.58,5.6312]
[1721981664260,12.41,177.6,177.58,5.6312]
[1721981665780,12.41,177.6,177.59,5.6309]
[1721981666680,5.6296,177.63,177.59,5.6309]
[1721981666880,12.41,177.6,177.59,5.6309]
[1721981667255,12.41,177.61,177.59,5.6309]
[1721981668183,12.41,177.62,177.61,5.6302]
[1721981669792,12.41,177.63,177.61,5.6302]
[1721981670175,14.71416161,177.69,177.62,14.0749]
[1721981670378,8.82512771,177.69,177.65,5.629]
[1721981670700,30.0,177.66,177.65,19.7016]
[1721981671705,12.41,177.68,177.65,19.7016]
[1721981671877,12.41,177.68,177.66,5.6286]
[1721981672081,30.0,177.67,177.66,5.6286]
[1721981672598,12.41,177.68,177.66,5.6286]
[1721981673784,8.82356674,177.72,177.66,1.1256081]
[1721981673985,12.41,177.71,177.66,1.1256081]
[1721981674383,12.41,177.71,177.68,5.628]
[1721981674785,12.41,177.71,177.67,5.6283]
[1721981677408,18.0371,177.71,177.67,5.6283]
[1721981677881,12.41,177.71,177.68,6.75356893]
[1721981678187,12.41,177.71,177.65,26.4826]
[1721981679000,12.41,177.7,177.67,5.6283]
[1721981682387,12.41,177.7,177.68,5.628]
[1721981682995,12.41,177.71,177.68,5.628]
[1721981684609,8.82260207,177.73,177.69,5.6277]
[1721981684813,12.41,177.71,177.69,5.6277]
[1721981685189,12.41,177.72,177.69,5.6277]
[1721981686614,8.82260207,177.73,177.7,1.12544491]
[1721981686816,12.31033636,177.78,177.7,12.41]
[1721981687017,12.31033636,177.78,177.72,14.0669]
[1721981687018,12.41,177.76,177.72,14.0669]
[1721981687320,12.41,177.76,177.72,19.6934]
[1721981688207,12.41,177.75,177.72,19.6934]
[1721981690212,12.41,177.75,177.73,5.6263]
[1721981691299,12.41,177.75,177.72,14.0669]
[1721981691498,12.41,177.74,177.72,14.0669]
[1721981691802,12.41,177.74,177.72,19.6935]
[1721981692718,0.7992039,177.78,177.73,5.6265]
[1721981692897,12.41,177.76,177.73,5.6265]
[1721981693507,6.4241039,177.78,177.73,5.6265]
[1721981693706,12.41,177.76,177.73,5.6265]
[1721981696023,6.4241039,177.78,177.73,5.6265]
[1721981696204,12.41,177.76,177.73,5.6265]
[1721981701431,0.7992039,177.78,177.76,5.6255]
[1721981701629,13.2092039,177.78,177.75,5.6258]
[1721981702336,12.41,177.77,177.74,14.0647]
[1721981702543,12.41,177.76,177.74,14.0647]
[1721981703828,12.41,177.76,177.74,19.6908]
[1721981704207,12.41,177.75,177.74,19.6908]
[1721981704415,12.41,177.75,177.7,20.382]
[1721981704624,12.41,177.73,177.71,5.6271]
[1721981704823,12.41,177.73,177.7,20.382]
[1721981705229,12.41,177.73,177.7,26.0092]
[1721981705419,12.41,177.73,177.71,5.627]
[1721981705617,12.41,177.75,177.7,20.382]
[1721981705810,12.41,177.75,177.73,5.6262]
[1721981706009,12.41,177.76,177.74,5.6261]
[1721981706210,13.2092039,177.78,177.75,14.0639]
[1721981706817,13.2092039,177.78,177.75,19.6897]
[1721981708118,0.7992039,177.78,177.75,35.9439]
[1721981709022,0.7992039,177.78,177.75,30.3181]
[1721981709023,13.2092039,177.78,177.75,30.3181]
[1721981709225,12.41,177.77,177.75,30.3181]
[1721981709511,13.2092039,177.78,177.75,31.44314648]
[1721981710141,13.2092039,177.78,177.75,37.06894648]
[1721981710321,13.2092039,177.78,177.75,35.9439]
[1721981710519,13.2092039,177.78,177.75,30.3181]
[1721981711249,0.7992039,177.78,177.75,35.9436]
[1721981711419,13.2092039,177.78,177.75,35.9436]
[1721981711619,0.7992039,177.78,177.76,5.6253]
[1721981711943,0.7992039,177.78,177.75,35.9436]
[1721981711944,13.2092039,177.78,177.75,35.9436]
[1721981712633,0.7992039,177.78,177.75,35.9436]
[1721981713151,18.0352,177.77,177.72,19.6935]
[1721981713322,12.41,177.77,177.73,5.6263]
[1721981713523,12.41,177.76,177.73,5.6263]
[1721981713724,12.41,177.77,177.73,5.6263]
[1721981714445,12.41,177.76,177.74,5.6261]
[1721981716039,12.41,177.77,177.75,5.6258]
[1721981716421,12.41,177.76,177.72,14.067]
[1721981716619,12.41,177.76,177.73,5.6264]
[1721981718143,12.41,177.74,177.71,15.6077]
[1721981718343,12.41,177.72,177.67,16.6305]
[1721981718522,12.41,177.71,177.68,5.628]
[1721981718844,12.41,177.75,177.67,22.2586]
[1721981718845,12.41,177.7,177.67,22.2586]
[1721981719220,12.41,177.69,177.67,5.6281]
[1721981719636,12.41,177.69,177.68,5.628]
[1721981720228,12.41,177.7,177.68,5.628]
[1721981720744,12.41,177.72,177.68,14.0695]
[1721981720930,15.9721,177.77,177.68,12.41]
[1721981721135,12.41,177.73,177.7,14.0679]
[1721981721334,12.41,177.74,177.71,5.6268]
[1721981722957,12.41,177.75,177.72,5.6267]
[1721981723618,12.41,177.74,177.71,6.75240915]
[1721981723822,12.41,177.74,177.71,5.6271]
[1721981724246,12.41,177.74,177.7,19.6953]
[1721981724441,0.7992039,177.78,177.66,20.7263]
[1721981724442,12.41,177.72,177.66,20.7263]
[1721981724636,12.41,177.72,177.68,5.6278]
[1721981725029,5.6266,177.73,177.68,5.6278]
[1721981725349,12.41,177.71,177.68,5.6278]
[1721981726743,12.41,177.69,177.66,20.7263]
[1721981726968,12.41,177.68,177.66,14.0713]
[1721981727125,12.41,177.67,177.65,15.8669]
[1721981727325,12.41,177.66,177.63,19.7036]
[1721981727539,5.6281,177.68,177.63,19.7036]
[1721981727540,12.41,177.65,177.63,19.7036]
[1721981727750,12.41,177.65,177.64,5.6293]
[1721981728746,5.6297,177.63,177.58,5.6309]
[1721981728932,12.41,177.61,177.57,6.0708]
[1721981729538,12.41,177.61,177.59,5.6308]
[1721981729733,12.41,177.61,177.58,5.6312]
[1721981730446,12.41,177.59,177.56,35.7413]
[1721981730650,12.41,177.59,177.56,19.7107]
[1721981731157,12.41,177.59,177.57,5.6314]
[1721981731356,12.41,177.59,177.56,14.0791]
[1721981731536,12.41,177.59,177.56,19.7109]
[1721981735454,12.41,177.57,177.54,5.6322]
[1721981735640,50.62100567,177.66,177.55,5.6322]
[1721981735641,12.41,177.56,177.55,5.6322]
[1721981735946,12.41,177.57,177.55,5.6322]
[1721981738847,12.41,177.56,177.53,14.082]
[1721981739056,12.41,177.55,177.53,14.082]
[1721981739357,12.41,177.56,177.53,14.082]
[1721981739737,12.41,177.55,177.53,19.7148]
[1721981740554,12.41,177.54,177.52,1.0]
[1721981740839,12.41,177.53,177.52,1.0]
[1721981741940,55.2717,177.57,177.52,1.0]
[1721981742259,12.41,177.53,177.52,1.0]
[1721981743349,12.41,177.54,177.52,6.6331]
[1721981743861,12.41,177.53,177.52,1.0]
[1721981744861,12.41,177.54,177.53,5.6325]
[1721981745763,12.41,177.55,177.53,5.6325]
[1721981746143,12.41,177.54,177.52,6.6331]
[1721981746343,5.6318,177.57,177.52,1.0]
[1721981746344,12.41,177.53,177.52,1.0]
[1721981749643,12.41,177.53,177.52,6.6331]
[1721981750149,12.41,177.55,177.54,5.6325]
[1721981750882,12.41,177.55,177.53,5.6328]
[1721981751053,12.41,177.54,177.52,20.7153]
[1721981752351,12.41,177.55,177.53,5.6328]
[1721981752951,5.6313,177.58,177.53,5.6328]
[1721981753147,5.6306,177.61,177.54,15.20709721]
[1721981753453,12.41,177.61,177.57,14.0787]
[1721981753649,12.41,177.61,177.57,15.20487434]
[1721981753849,12.41,177.63,177.6,14.0765]
[1721981754049,12.41,177.63,177.61,5.6302]
[1721981754268,12.41,177.64,177.61,5.6302]
[1721981755184,5.88298574,177.7,177.6,26.4865]
[1721981755348,5.88298574,177.7,177.65,5.629]
[1721981755553,0.97957783,177.71,177.65,5.629]
[1721981755554,12.41,177.67,177.65,5.629]
[1721981755873,12.41,177.68,177.65,5.629]
[1721981756469,12.41,177.68,177.63,47.3385]
[1721981756788,12.41,177.65,177.63,15.2252]
[1721981756954,12.41,177.64,177.61,6.6544]
[1721981757272,12.41,177.63,177.61,12.2844]
[1721981758079,12.41,177.63,177.61,5.63]
[1721981758268,12.41,177.62,177.59,29.5684]
[1721981758579,12.41,177.61,177.6,5.6306]
[1721981758751,12.41,177.62,177.61,5.6301]
[1721981758952,12.41,177.63,177.61,5.6301]
[1721981759151,12.41,177.64,177.61,5.6301]
[1721981759386,12.41,177.64,177.62,5.6299]
[1721981759861,12.41,177.64,177.63,5.6296]
[1721981760063,12.41,177.65,177.63,5.6296]
[1721981760266,24.68,177.7,177.61,5.6302]
[1721981760481,45.0,177.69,177.61,5.6302]
[1721981760655,5.629,177.66,177.61,5.6302]
[1721981760857,5.6291,177.65,177.59,29.5684]
[1721981761370,24.68,177.67,177.58,5.631]
[1721981761577,5.6299,177.63,177.58,5.631]
[1721981762568,5.6294,177.64,177.59,5.6309]
[1721981763189,40.553,177.67,177.57,20.6234]
[1721981763358,5.6302,177.62,177.57,26.2549]
[1721981763964,24.68,177.64,177.57,14.0782]
[1721981764164,45.0,177.63,177.57,14.0782]
[1721981764694,5.6303,177.61,177.57,14.0782]
[1721981766057,50.6299,177.63,177.57,19.7096]
[1721981766254,50.6299,177.63,177.57,14.0782]
[1721981766255,45.0,177.63,177.57,14.0782]
[1721981766483,5.6303,177.61,177.57,14.0782]
[1721981766667,5.6303,177.61,177.57,19.7097]
[1721981767472,45.0,177.63,177.58,5.6312]
[1721981767669,5.6293,177.65,177.6,5.6306]
[1721981767873,30.0,177.61,177.59,5.6309]
[1721981768072,5.6294,177.64,177.59,5.6309]
[1721981768387,5.6297,177.63,177.58,5.6312]
[1721981770066,5.6297,177.63,177.59,5.6309]
[1721981770267,5.6294,177.64,177.59,5.6309]
[1721981773709,5.6297,177.63,177.58,5.6311]
[1721981774905,14.45777661,177.63,177.58,5.6311]
[1721981775216,14.45797661,177.63,177.58,5.6311]
[1721981776191,8.82807661,177.63,177.59,5.6309]
[1721981776913,24.68,177.67,177.6,1.12610665]
[1721981777111,8.82727855,177.66,177.6,1.12610665]
[1721981777803,14.45627855,177.66,177.61,5.6302]
[1721981778008,8.82727855,177.66,177.61,5.6302]
[1721981778305,5.629,177.65,177.6,6.75660665]
[1721981778505,14.45597855,177.66,177.61,6.7560793]
[1721981778888,14.45597855,177.66,177.61,5.6301]
[1721981780103,30.55842264,177.7,177.62,30.50517736]
[1721981780297,12.34,177.67,177.62,30.50517736]
[1721981780495,12.34,177.66,177.62,29.3794]
[1721981780698,12.34,177.66,177.63,5.6294]
[1721981781006,12.34,177.66,177.64,5.6292]
[1721981781707,12.34,177.66,177.63,6.75537589]
[1721981782295,12.34,177.66,177.63,5.6296]
[1721981782607,12.34,177.68,177.64,1.12575425]
[1721981782903,12.34,177.68,177.65,6.75446841]
[1721981783108,12.34,177.69,177.65,6.75446841]
[1721981783490,8.82534393,177.72,177.67,12.34]
[1721981783693,5.6259,177.75,177.7,5.6274]
[1721981784098,12.34,177.74,177.7,5.6274]
[1721981784493,12.34,177.77,177.71,13.46532515]
[1721981784688,12.34,177.77,177.73,5.6263]
[1721981785009,12.34,177.77,177.73,6.75144089]
[1721981785201,12.34,177.77,177.73,5.6263]
[1721981785397,12.34,177.76,177.73,5.6263]
[1721981785902,12.34,177.76,177.73,6.75144218]
[1721981786304,0.7992039,177.78,177.74,6.75114072]
[1721981786614,0.7992039,177.78,177.74,5.626]
[1721981792123,0.7992039,177.78,177.72,11.8913]
[1721981792418,0.7992039,177.78,177.73,5.6264]
[1721981793401,0.7992039,177.78,177.74,5.626]
[1721981793728,0.7992039,177.78,177.77,5.6252]
[1721981793900,0.7992039,177.78,177.76,5.6255]
[1721981794217,0.7992039,177.78,177.75,19.6897]
[1721981794417,0.7992039,177.78,177.75,14.0639]
[1721981795816,0.7992039,177.78,177.75,19.6897]
[1721981798533,0.7992039,177.78,177.72,20.3316]
[1721981798909,0.7992039,177.78,177.74,5.6259]
[1721981800029,0.7992039,177.78,177.75,6.75087607]
[1721981800223,0.7992039,177.78,177.75,5.6258]
[1721981802020,0.7992039,177.78,177.76,5.6255]
[1721981803214,0.7992039,177.78,177.75,6.7507997]
[1721981803416,0.7992039,177.78,177.75,5.6258]
[1721981805028,0.7992039,177.78,177.74,19.691]
[1721981806428,0.7992039,177.78,177.75,5.6258]
[1721981808250,13.1292039,177.78,177.75,5.6258]
[1721981810020,12.33,177.77,177.74,14.0649]
[1721981810339,12.33,177.76,177.73,5.6262]
[1721981810532,0.7992039,177.78,177.74,6.75120152]
[1721981810738,12.33,177.77,177.74,6.75120152]
[1721981810916,12.33,177.77,177.75,5.6258]
[1721981811319,13.1292039,177.78,177.75,5.6258]
[1721981811720,0.7992039,177.78,177.76,5.6254]
[1721981812115,0.7992039,177.78,177.74,13.455008]
[1721981812323,0.7992039,177.78,177.77,5.6252]
[1721981813136,0.7992039,177.78,177.76,19.6892]
[1721981814722,0.7992039,177.78,177.77,5.6252]
[1721981814937,0.7992039,177.78,177.76,19.6893]
[1721981817923,0.7992039,177.78,177.76,14.0638]
[1721981819524,0.7992039,177.78,177.76,19.6893]
[1721981826638,13.1292039,177.78,177.76,19.6893]
[1721981828225,0.7992039,177.78,177.77,5.6252]
[1721981828433,13.1292039,177.78,177.72,20.3317]
[1721981828634,0.7992039,177.78,177.74,14.0648]
[1721981828835,13.1292039,177.78,177.75,6.75064422]
[1721981829451,13.1292039,177.78,177.76,5.6254]
[1721981831036,13.1292039,177.78,177.77,5.6252]
[1721981831346,0.7992039,177.78,177.77,5.6252]
[1721981833265,0.7992039,177.78,177.76,5.6255]
[1721981834753,0.7992039,177.78,177.77,5.6252]
[1721981835536,0.7992039,177.78,177.75,5.6256]
[1721981836330,0.7992039,177.78,177.76,5.6255]
[1721981838658,0.7992039,177.78,177.77,5.6252]
[1721981841951,0.7992039,177.78,177.76,19.6886]
[1721981843955,13.1292039,177.78,177.76,14.0631]
[1721981844253,12.33,177.77,177.76,14.0631]
[1721981844566,13.1292039,177.78,177.77,5.6252]
[1721981844872,0.7992039,177.78,177.77,5.6252]
[1721981849551,0.7992039,177.78,177.77,17.9552]
[1721981850348,0.7992039,177.78,177.77,19.07998006]
[1721981856063,0.7992039,177.78,177.77,6.74998006]
[1721981856256,0.7992039,177.78,177.77,17.9552]
[1721981856853,0.7992039,177.78,177.77,19.07993516]
[1721981861872,0.7992039,177.78,177.77,19.07993672]
[1721981862062,0.7992039,177.78,177.77,17.9552]
[1721981862859,0.7992039,177.78,177.77,19.07993656]
[1721981863575,0.7992039,177.78,177.77,17.9552]
[1721981864368,0.7992039,177.78,177.77,19.07984912]
[1721981870582,0.7992039,177.78,177.77,64.07984912]
[1721981875996,8.81707775,177.88,177.77,64.61914912]
[1721981876295,12.33,177.86,177.8,12.33]
[1721981876469,12.33,177.83,177.8,19.6841]
[1721981876796,12.33,177.83,177.81,5.6239]
[1721981877366,12.33,177.84,177.81,5.6239]
[1721981878894,12.33,177.84,177.82,5.6236]
[1721981879792,12.33,177.84,177.81,5.6239]
[1721981879970,12.33,177.84,177.82,5.6236]
[1721981881191,5.6221,177.87,177.82,5.6236]
[1721981881394,12.33,177.84,177.82,5.6236]
[1721981882379,12.33,177.84,177.81,5.6239]
[1721981882584,12.33,177.83,177.8,14.0599]
[1721981882787,12.33,177.83,177.76,44.0067]
[1721981882788,12.33,177.81,177.76,14.0631]
[1721981882996,12.33,177.78,177.77,5.6252]
[1721981883394,45.0,177.85,177.76,14.0631]
[1721981883596,12.33,177.8,177.78,5.6248]
[1721981883974,12.33,177.79,177.77,5.6251]
[1721981885077,12.33,177.8,177.77,5.6251]
[1721981885479,12.33,177.8,177.78,5.6249]
[1721981885686,12.33,177.8,177.76,14.0631]
[1721981885687,12.33,177.8,177.77,5.6252]
[1721981886085,12.33,177.79,177.77,5.6252]
[1721981886282,12.33,177.78,177.76,14.0631]
[1721981886482,12.33,177.77,177.76,14.0631]
[1721981887193,12.33,177.77,177.76,19.6886]
[1721981887396,5.88435987,177.83,177.77,5.6252]
[1721981887397,12.33,177.78,177.77,5.6252]
[1721981887701,12.33,177.79,177.77,5.6252]
[1721981887890,12.33,177.78,177.76,19.6886]
[1721981888690,12.33,177.78,177.76,14.0631]
[1721981889282,12.33,177.78,177.76,19.6884]
[1721981889600,12.33,177.78,177.77,5.6252]
[1721981890298,50.623,177.85,177.79,5.6245]
[1721981890597,45.0,177.85,177.78,5.6248]
[1721981890811,12.33,177.8,177.78,5.6248]
[1721981891300,12.33,177.8,177.79,5.6246]
[1721981891684,12.33,177.8,177.78,5.6248]
[1721981892700,49.32,177.84,177.79,5.6244]
[1721981892899,12.33,177.8,177.79,5.6244]
[1721981893084,12.33,177.81,177.78,5.6249]
[1721981893286,12.33,177.8,177.78,5.6249]
[1721981894497,12.33,177.8,177.77,5.6252]
[1721981894881,5.6237,177.82,177.76,14.0631]
[1721981894882,5.6229,177.85,177.79,14.0613]
[1721981895088,12.33,177.82,177.79,14.0613]
[1721981895293,12.33,177.81,177.79,14.0613]
[1721981896087,12.33,177.8,177.76,14.0638]
[1721981896288,12.33,177.77,177.76,14.0638]
[1721981897188,12.33,177.78,177.77,5.625]
[1721981897588,12.33,177.79,177.77,5.625]
[1721981899313,12.33,177.8,177.76,14.0638]
[1721981899808,12.33,177.8,177.79,5.6245]
[1721981900107,12.33,177.8,177.77,5.625]
[1721981900293,12.33,177.78,177.76,14.0638]
[1721981900496,49.32,177.84,177.76,14.0638]
[1721981900497,12.33,177.77,177.76,14.0638]
[1721981900691,12.33,177.77,177.76,19.6892]
[1721981900891,12.33,177.78,177.77,5.6251]
[1721981901997,12.33,177.79,177.78,5.6249]
[1721981902198,12.33,177.8,177.76,14.0638]
[1721981902694,12.33,177.8,177.79,5.6246]
[1721981904906,12.33,177.8,177.78,5.6248]
[1721981906910,12.33,177.79,177.78,5.6248]
[1721981908220,12.33,177.8,177.78,5.6248]
[1721981908419,12.33,177.79,177.77,5.6252]
[1721981909621,12.33,177.79,177.78,5.6249]
[1721981910718,12.33,177.8,177.78,5.6249]
[1721981911020,12.33,177.79,177.78,5.6249]
[1721981913219,5.6234,177.83,177.78,5.6249]
[1721981913419,12.33,177.8,177.78,5.6249]
[1721981914204,12.33,177.79,177.78,5.6249]
[1721981915118,12.33,177.79,177.76,14.0638]
[1721981915422,12.33,177.78,177.76,19.6893]
[1721981916004,12.33,177.78,177.77,5.6252]
[1721981916623,12.33,177.78,177.76,14.0638]
[1721981916823,49.32,177.84,177.76,14.0638]
[1721981916824,12.33,177.77,177.76,14.0638]
[1721981917317,87.33,177.77,177.66,18.7465]
[1721981917520,12.33,177.7,177.66,6.4165]
[1721981917829,12.33,177.7,177.69,19.6962]
[1721981918123,12.33,177.71,177.69,19.6962]
[1721981918517,12.33,177.7,177.69,14.0687]
[1721981919341,12.33,177.7,177.69,19.6964]
[1721981919506,12.33,177.71,177.69,19.6964]
[1721981920311,12.33,177.72,177.71,5.627]
[1721981921109,12.33,177.72,177.7,5.6274]
[1721981922124,12.33,177.72,177.69,19.6964]
[1721981922329,12.33,177.71,177.69,19.6964]
[1721981922726,5.6257,177.76,177.7,5.6272]
[1721981922909,12.33,177.72,177.7,5.6272]
[1721981923104,12.33,177.72,177.69,19.6964]
[1721981923309,12.33,177.7,177.67,5.6282]
[1721981924328,12.33,177.7,177.66,26.1168]
[1721981924523,12.33,177.67,177.66,14.0717]
[1721981924726,12.33,177.68,177.66,14.0717]
[1721981924913,5.6265,177.73,177.68,5.6278]
[1721981925112,105.1657,177.77,177.69,5.6275]
[1721981925113,12.33,177.71,177.69,5.6275]
[1721981925310,12.33,177.72,177.69,5.6275]
[1721981925533,12.33,177.73,177.7,5.6272]
[1721981927218,12.33,177.74,177.7,5.6272]
[1721981927814,17.9561,177.74,177.69,32.0267]
[1721981928010,17.9561,177.74,177.69,19.6967]
[1721981928627,12.33,177.75,177.7,5.6273]
[1721981933447,12.33,177.75,177.7,17.9573]
[1721981933849,12.33,177.75,177.7,5.6273]
[1721981935743,5.6257,177.76,177.7,5.6273]
[1721981936057,12.33,177.74,177.71,5.6271]
[1721981936558,12.33,177.74,177.69,32.0266]
[1721981936741,12.33,177.74,177.69,19.6966]
[1721981937135,12.33,177.74,177.7,5.6274]
[1721981938656,12.33,177.74,177.71,5.627]
[1721981938856,8.82204191,177.75,177.74,5.6261]
[1721981939156,5.6248,177.79,177.74,5.6261]
[1721981939157,12.33,177.78,177.74,5.6261]
[1721981939349,21.15121562,177.78,177.75,5.6258]
[1721981939935,21.15121562,177.78,177.74,5.6261]
[1721981940137,11.88770837,177.83,177.78,5.6249]
[1721981940138,5.6234,177.83,177.78,5.6249]
[1721981940449,12.33,177.82,177.79,5.6245]
[1721981940636,21.1495162,177.83,177.79,5.6245]
[1721981940838,8.8195162,177.83,177.81,5.6238]
[1721981941149,12.33,177.84,177.8,19.6847]
[1721981941353,12.33,177.82,177.78,5.6246]
[1721981941554,12.33,177.82,177.79,5.6245]
[1721981941765,12.33,177.83,177.79,5.6245]
[1721981942349,17.953,177.84,177.79,5.6245]
[1721981943642,12.33,177.85,177.8,14.0605]
[1721981943843,12.33,177.86,177.82,5.6234]
[1721981944054,12.33,177.87,177.83,5.6233]
[1721981944242,12.33,177.86,177.83,5.6233]
[1721981944441,12.33,177.86,177.82,5.6236]
[1721981944674,12.33,177.85,177.82,5.6236]
[1721981945344,12.33,177.86,177.82,5.6236]
[1721981945868,12.33,177.88,177.84,5.6227]
[1721981946968,12.33,177.85,177.83,14.0578]
[1721981947266,12.33,177.84,177.83,14.0578]
[1721981947854,12.33,177.84,177.83,19.6811]
[1721981948383,12.33,177.84,177.83,14.0578]
[1721981950367,12.33,177.85,177.83,19.6811]
[1721981954664,12.33,177.85,177.83,14.0578]
[1721981955453,5.6221,177.87,177.83,14.0578]
[1721981955651,12.33,177.85,177.83,14.0578]
[1721981955851,12.33,177.85,177.83,19.6811]
[1721981956253,12.33,177.85,177.83,14.0578]
[1721981956873,12.33,177.85,177.83,19.6811]
[1721981960060,12.33,177.85,177.83,14.0578]
[1721981960875,12.33,177.85,177.83,19.6811]
[1721981961772,12.33,177.85,177.83,14.0578]
[1721981962355,12.33,177.84,177.81,5.6239]
[1721981962551,14.0527,177.91,177.8,14.0607]
[1721981962552,12.33,177.82,177.8,14.0607]
[1721981962781,12.33,177.81,177.8,14.0607]
[1721981963862,12.33,177.81,177.8,19.6849]
[1721981964266,12.33,177.82,177.8,19.6849]
[1721981965078,12.33,177.83,177.8,19.6849]
[1721981966269,12.33,177.81,177.79,15.142]
[1721981966474,6.4732,177.9,177.77,6.5867]
[1721981966475,12.33,177.8,177.77,6.5867]
[1721981966666,12.33,177.78,177.75,15.0753]
[1721981966983,12.33,177.76,177.74,14.0652]
[1721981967288,12.33,177.77,177.75,5.6258]
[1721981968360,12.33,177.77,177.74,14.0652]
[1721981968564,12.33,177.77,177.75,5.6258]
[1721981968863,12.33,177.78,177.76,5.6255]
[1721981969475,12.33,177.79,177.76,5.6255]
[1721981971364,12.33,177.78,177.76,5.6255]
[1721981971682,12.33,177.78,177.74,19.691]
[1721981972196,5.6242,177.8,177.75,5.6258]
[1721981972369,12.33,177.78,177.75,5.6258]
[1721981973280,12.33,177.77,177.75,5.6258]
[1721981974382,5.6242,177.8,177.75,5.6258]
[1721981974577,5.624,177.81,177.76,5.6255]
[1721981974777,12.33,177.79,177.76,5.6255]
[1721981976575,12.33,177.8,177.76,5.6255]
[1721981976777,12.33,177.8,177.77,6.75012727]
[1721981976994,12.33,177.8,177.77,5.6251]
[1721981977303,12.33,177.81,177.78,5.6249]
[1721981977792,12.33,177.8,177.78,5.6249]
[1721981979401,12.33,177.81,177.78,5.6249]
[1721981979985,12.33,177.81,177.77,5.6251]
[1721981981703,12.33,177.8,177.77,5.6251]
[1721981982580,12.33,177.8,177.76,19.6886]
[1721981983679,12.33,177.79,177.76,14.0632]
[1721981983896,12.33,177.78,177.76,14.0632]
[1721981985694,12.33,177.78,177.71,4.1777]
[1721981985891,12.33,177.78,177.73,12.33]
[1721981986799,12.33,177.78,177.76,19.6887]
[1721981987792,5.624,177.81,177.76,19.6887]
[1721981989397,12.33,177.77,177.72,25.6976]
[1721981989600,12.33,177.76,177.74,5.6261]
[1721981989774,0.97990441,177.84,177.74,14.0647]
[1721981990093,12.33,177.78,177.74,14.0647]
[1721981990599,12.33,177.78,177.76,5.6255]
[1721981991499,12.33,177.79,177.76,5.6255]